bitfinex/quotes_SOLUSD_20241111
["timestamp","ask_amount","ask_price","bid_price","bid_amount"]
[1731326682954,26.31720253,218.61,218.56,4.5754]
[1731326683353,26.31720253,218.6,218.56,16.0139]
[1731326683562,26.31720253,218.63,218.57,26.31720253]
[1731326683874,26.31720253,218.64,218.58,26.31720253]
[1731326684049,26.31720253,218.63,218.57,26.31720253]
[1731326684251,26.31720253,218.66,218.6,26.31720253]
[1731326684460,26.31720253,218.69,218.62,26.31720253]
[1731326684951,26.31720253,218.66,218.59,26.31720253]
[1731326685184,26.31720253,218.67,218.61,26.31720253]
[1731326685375,26.31720253,218.69,218.62,26.31720253]
[1731326685547,26.31720253,218.69,218.63,42.32590253]
[1731326685872,1.86217564,218.77,218.63,42.32590253]
[1731326685873,26.31720253,218.74,218.67,26.31720253]
[1731326686048,26.31720253,218.73,218.67,26.31720253]
[1731326686461,26.31720253,218.73,218.63,38.8783]
[1731326686462,26.31720253,218.75,218.68,26.31720253]
[1731326687378,22.5178,218.87,218.74,26.31720253]
[1731326687552,26.31720253,218.83,218.77,26.31720253]
[1731326687875,22.5178,218.87,218.77,26.31720253]
[1731326687876,26.31720253,218.84,218.77,26.31720253]
[1731326688075,26.31720253,218.83,218.77,26.31720253]
[1731326688376,26.31720253,218.83,218.76,26.31720253]
[1731326688774,26.31720253,218.83,218.77,26.31720253]
[1731326689654,26.31720253,218.84,218.78,15.9978]
[1731326689858,11.198,218.9,218.78,15.9978]
[1731326689859,11.198,218.9,218.78,42.31500253]
[1731326690060,26.31720253,218.83,218.78,15.9978]
[1731326690777,26.31720253,218.84,218.78,15.9978]
[1731326690962,26.31720253,218.85,218.79,26.31720253]
[1731326691156,26.31720253,218.86,218.79,26.31720253]
[1731326691562,26.31720253,218.87,218.81,15.9955]
[1731326692083,26.31720253,218.88,218.82,26.31720253]
[1731326692265,6.432,218.95,218.84,26.31720253]
[1731326692457,26.31720253,218.91,218.84,26.31720253]
[1731326692669,26.31720253,218.9,218.84,26.31720253]
[1731326692885,10.9993,218.95,218.81,15.9955]
[1731326692886,26.31720253,218.92,218.81,15.9955]
[1731326693183,26.31720253,218.92,218.86,26.31720253]
[1731326693872,26.31720253,218.91,218.87,11.4223]
[1731326694182,10.9992,218.95,218.85,4.5692]
[1731326694183,26.31720253,218.88,218.85,4.5692]
[1731326694358,26.31720253,218.87,218.82,11.4247]
[1731326694563,26.31720253,218.87,218.83,4.5696]
[1731326694775,26.31720253,218.87,218.83,15.9939]
[1731326694963,26.31720253,218.88,218.83,15.9939]
[1731326695165,10.9992,218.95,218.76,26.31720253]
[1731326695166,26.31720253,218.86,218.78,11.4267]
[1731326695360,26.31720253,218.88,218.82,26.31720253]
[1731326696074,26.31720253,218.92,218.85,26.31720253]
[1731326696460,26.31720253,218.91,218.84,26.31720253]
[1731326696687,26.31720253,218.9,218.83,42.31120253]
[1731326697786,4.5671,218.96,218.83,42.31120253]
[1731326697787,26.31720253,218.89,218.83,42.31120253]
[1731326697967,26.31720253,218.88,218.83,15.994]
[1731326698173,26.31720253,218.87,218.83,15.994]
[1731326698583,26.31720253,218.88,218.83,15.994]
[1731326699583,26.31720253,218.84,218.78,11.4267]
[1731326699766,26.31720253,218.86,218.79,26.31720253]
[1731326700081,26.31720253,218.88,218.82,26.31720253]
[1731326700659,26.31720253,218.89,218.83,26.31720253]
[1731326700863,26.31720253,218.89,218.82,26.31720253]
[1731326701186,26.31720253,218.9,218.83,26.31720253]
[1731326701365,26.31720253,218.94,218.87,26.31720253]
[1731326701566,26.31720253,218.93,218.86,26.31720253]
[1731326702073,213.38150253,219.0,218.87,42.30840253]
[1731326702074,26.31720253,218.94,218.87,42.30840253]
[1731326702385,182.498,219.0,218.93,26.31720253]
[1731326702574,26.31720253,218.97,218.89,26.31720253]
[1731326703171,26.31720253,218.96,218.89,26.31720253]
[1731326703573,26.31720253,218.95,218.89,5.07228627]
[1731326703772,26.31720253,218.94,218.88,21.5451]
[1731326703990,26.31720253,218.96,218.89,26.31720253]
[1731326704285,26.31720253,218.97,218.9,15.9889]
[1731326705005,182.498,219.0,218.9,15.9889]
[1731326705006,26.31720253,218.95,218.9,15.9889]
[1731326705283,26.31720253,218.96,218.9,15.9889]
[1731326705582,26.31720253,218.95,218.9,15.9889]
[1731326705790,26.31720253,218.93,218.9,15.9889]
[1731326706170,26.31720253,218.93,218.9,11.4207]
[1731326706367,26.31720253,218.93,218.87,4.5689]
[1731326706368,26.31720253,218.91,218.85,4.5692]
[1731326706768,26.31720253,218.92,218.85,30.88640253]
[1731326706988,26.31720253,218.91,218.85,4.5692]
[1731326707372,26.31720253,218.91,218.85,15.9925]
[1731326707781,26.31720253,218.88,218.85,15.9926]
[1731326707974,26.31720253,218.9,218.85,15.9926]
[1731326708383,26.31720253,218.88,218.85,15.9926]
[1731326708592,26.31720253,218.86,218.8,11.4258]
[1731326708803,23.0088,218.91,218.82,26.31720253]
[1731326708968,23.0088,218.91,218.82,32.28122542]
[1731326709165,26.31720253,218.87,218.81,26.31720253]
[1731326709369,26.31720253,218.86,218.8,42.31330253]
[1731326709789,182.498,219.0,218.85,26.31720253]
[1731326710089,26.31720253,218.91,218.84,26.31720253]
[1731326710691,26.31720253,218.92,218.85,26.31720253]
[1731326710888,26.31720253,218.93,218.86,48.77073653]
[1731326711089,26.31720253,218.92,218.86,15.9919]
[1731326711893,26.31720253,218.91,218.86,15.9919]
[1731326712974,26.31720253,218.9,218.86,11.4228]
[1731326713190,26.31720253,218.91,218.86,11.4228]
[1731326713396,26.31720253,218.92,218.86,11.4228]
[1731326713797,26.31720253,218.91,218.86,11.4228]
[1731326713977,26.31720253,218.94,218.87,26.31720253]
[1731326714299,26.31720253,218.94,218.88,6.461634]
[1731326714595,26.31720253,218.98,218.91,26.31720253]
[1731326714977,26.31720253,218.95,218.92,11.4196]
[1731326715203,26.31720253,218.95,218.92,15.9874]
[1731326715408,26.31720253,218.96,218.92,15.9874]
[1731326715701,26.31720253,218.93,218.88,11.4217]
[1731326715881,26.31720253,218.92,218.88,11.4217]
[1731326716703,26.31720253,218.96,218.89,26.31720253]
[1731326716999,26.31720253,218.94,218.9,15.9889]
[1731326717193,182.498,219.0,218.9,15.9889]
[1731326717194,26.31720253,218.92,218.9,11.4207]
[1731326718094,26.31720253,218.92,218.9,15.9889]
[1731326718302,26.31720253,218.91,218.86,11.4227]
[1731326718478,26.31720253,218.9,218.86,11.4227]
[1731326718680,26.31720253,218.89,218.86,11.4227]
[1731326718995,224.79690253,219.0,218.86,11.4227]
[1731326718996,26.31720253,218.88,218.86,11.4227]
[1731326719300,26.31720253,218.87,218.81,4.57]
[1731326719489,26.31720253,218.84,218.81,15.9954]
[1731326720699,26.31720253,218.85,218.81,15.9954]
[1731326720887,26.31720253,218.89,218.82,32.46254004]
[1731326721081,26.31720253,218.88,218.82,32.46254004]
[1731326721281,26.31720253,218.88,218.81,42.31260253]
[1731326721474,26.31720253,218.86,218.81,15.9954]
[1731326722398,4.5677,218.93,218.81,15.9954]
[1731326722399,26.31720253,218.88,218.81,48.45794004]
[1731326722589,26.31720253,218.88,218.82,32.46254004]
[1731326722895,26.31720253,218.88,218.83,15.994]
[1731326723680,26.31720253,218.88,218.83,11.4243]
[1731326723887,26.31720253,218.86,218.83,11.4243]
[1731326724503,6.4656,218.94,218.84,26.31720253]
[1731326724796,26.31720253,218.88,218.83,11.4243]
[1731326725403,26.31720253,218.86,218.83,11.4243]
[1731326725587,26.31720253,218.87,218.83,11.4243]
[1731326727693,26.31720253,218.85,218.83,11.4243]
[1731326727885,26.31720253,218.84,218.8,0.6852437]
[1731326728086,26.31720253,218.85,218.8,16.6814437]
[1731326728284,26.31720253,218.84,218.8,15.9962]
[1731326728483,26.31720253,218.86,218.8,15.9962]
[1731326728684,26.31720253,218.88,218.81,26.31720253]
[1731326729104,26.31720253,218.87,218.8,42.31340253]
[1731326729602,26.31720253,218.88,218.82,26.31720253]
[1731326729780,26.31720253,218.87,218.8,42.31340253]
[1731326730806,26.31720253,218.88,218.82,26.31720253]
[1731326731006,26.31720253,218.87,218.81,26.31720253]
[1731326731207,26.31720253,218.86,218.8,65.16530253]
[1731326731385,26.31720253,218.86,218.8,42.31340253]
[1731326731702,26.31720253,218.85,218.8,11.4259]
[1731326731887,26.31720253,218.86,218.8,37.74310253]
[1731326732287,26.31720253,218.85,218.8,11.4259]
[1731326732504,26.31720253,218.83,218.8,11.4259]
[1731326732881,16.39756589,218.83,218.8,11.4259]
[1731326733082,16.39756589,218.84,218.8,11.4259]
[1731326733286,16.39756589,218.87,218.8,33.9688034]
[1731326733583,16.39756589,218.85,218.8,15.9962]
[1731326733790,16.39756589,218.84,218.8,15.9962]
[1731326734204,16.39756589,218.86,218.8,15.9962]
[1731326734509,16.39756589,218.84,218.8,15.9962]
[1731326736485,0.1,218.93,218.8,15.9962]
[1731326736486,32.76646589,218.83,218.8,11.4259]
[1731326736883,16.39756589,218.85,218.8,11.4259]
[1731326737391,16.39756589,218.87,218.8,27.82346589]
[1731326737585,16.3689,218.88,218.8,11.4259]
[1731326738219,16.39756589,218.86,218.8,15.9962]
[1731326740807,16.39756589,218.85,218.8,15.9962]
[1731326742009,16.39756589,218.86,218.8,15.9962]
[1731326742305,16.39756589,218.87,218.81,16.39756589]
[1731326742507,16.39756589,218.88,218.82,16.39756589]
[1731326742715,16.39756589,218.89,218.83,16.39756589]
[1731326742901,16.39756589,218.91,218.84,16.39756589]
[1731326743213,16.39756589,218.9,218.83,16.39756589]
[1731326743394,16.39756589,218.85,218.84,11.4238]
[1731326743710,16.39756589,218.86,218.84,15.9933]
[1731326744206,20.7235,218.93,218.8,15.9958]
[1731326744207,16.39756589,218.85,218.8,15.9958]
[1731326744394,16.39756589,218.83,218.8,15.9958]
[1731326745417,16.39756589,218.84,218.8,11.4257]
[1731326745920,16.39756589,218.82,218.8,11.4257]
[1731326746099,16.39756589,218.83,218.8,11.4257]
[1731326746699,16.39756589,218.85,218.8,11.4257]
[1731326747103,16.39756589,218.84,218.8,11.4257]
[1731326747491,16.39756589,218.86,218.8,11.4257]
[1731326747698,16.39756589,218.86,218.8,27.82326589]
[1731326747908,16.39756589,218.86,218.8,11.4257]
[1731326748312,16.39756589,218.86,218.8,27.82326589]
[1731326748597,16.39756589,218.86,218.8,32.39356589]
[1731326749002,16.39756589,218.86,218.8,15.996]
[1731326749411,4.5681,218.91,218.8,15.996]
[1731326749622,16.39756589,218.84,218.8,15.996]
[1731326751119,4.5682,218.91,218.8,15.996]
[1731326751414,16.39756589,218.85,218.8,15.996]
[1731326751619,16.39756589,218.85,218.8,11.4257]
[1731326752117,16.39756589,218.84,218.8,11.4257]
[1731326752425,16.39756589,218.83,218.8,11.4257]
[1731326752916,16.39756589,218.81,218.8,11.4257]
[1731326753120,16.39756589,218.82,218.8,11.4257]
[1731326753795,16.39756589,218.81,218.8,11.4257]
[1731326754317,16.39756589,218.82,218.8,11.4257]
[1731326755119,16.39756589,218.81,218.8,11.4257]
[1731326755418,16.39756589,218.82,218.8,11.4257]
[1731326755795,4.569,218.87,218.8,11.4257]
[1731326755996,16.39756589,218.83,218.77,6.34335641]
[1731326756212,16.39756589,218.83,218.77,4.571]
[1731326756423,16.39756589,218.83,218.74,27.60135331]
[1731326756424,16.39756589,218.78,218.74,4.74365331]
[1731326756723,0.1,218.84,218.74,4.74365331]
[1731326756724,16.39756589,218.75,218.74,4.74365331]
[1731326757212,16.39756589,218.75,218.69,11.4317]
[1731326757398,16.39756589,218.7,218.69,11.4317]
[1731326757598,16.39756589,218.7,218.66,4.5731]
[1731326757804,16.39756589,218.68,218.66,4.5731]
[1731326758118,16.39756589,218.68,218.65,11.4337]
[1731326758119,16.39756589,218.67,218.65,11.4337]
[1731326758415,16.39756589,218.66,218.65,11.4337]
[1731326758720,16.39756589,218.66,218.64,0.68567564]
[1731326758894,16.39756589,218.65,218.64,0.68567564]
[1731326759825,16.39756589,218.65,218.5,11.437]
[1731326759826,0.1,218.61,218.5,11.437]
[1731326760119,0.1,218.61,218.47,16.0204]
[1731326760120,16.39756589,218.51,218.47,16.0204]
[1731326760323,16.39756589,218.49,218.47,16.0204]
[1731326760699,16.39756589,218.49,218.43,16.39756589]
[1731326760700,16.39756589,218.48,218.43,9.32629665]
[1731326761016,16.39756589,218.44,218.41,16.0243]
[1731326761221,16.39756589,218.42,218.41,16.0243]
[1731326761595,16.39756589,218.42,218.41,11.4459]
[1731326761803,16.39756589,218.42,218.39,4.75096299]
[1731326762011,32.79513178,218.4,218.35,11.4492]
[1731326762227,16.39756589,218.36,218.29,11.4525]
[1731326762400,16.39756589,218.3,218.29,11.4525]
[1731326763223,16.39756589,218.32,218.29,11.4525]
[1731326763430,16.39756589,218.32,218.28,4.5812]
[1731326763431,16.39756589,218.3,218.22,16.20457259]
[1731326763640,0.1,218.3,218.22,4.74867259]
[1731326763817,16.39756589,218.23,218.17,4.5835]
[1731326764124,0.1,218.3,218.17,11.4589]
[1731326764303,16.39756589,218.22,218.17,11.4589]
[1731326764632,16.39756589,218.18,218.1,4.5849]
[1731326764795,26.40258104,218.13,218.1,4.5849]
[1731326765001,16.0508,218.17,218.07,4.77415883]
[1731326765214,16.0508,218.17,218.02,11.4667]
[1731326765415,26.40258104,218.1,218.03,26.40258104]
[1731326765616,26.40258104,218.11,218.04,42.45458104]
[1731326765822,3.08817771,218.12,218.04,16.052]
[1731326766026,26.40258104,218.09,218.04,16.052]
[1731326766204,26.40258104,218.12,218.05,26.40258104]
[1731326766405,23.876884,218.25,218.04,38.9835]
[1731326766605,0.1,218.2,218.04,57.318819]
[1731326766821,0.1,218.16,218.04,16.052]
[1731326767009,24.5821,218.24,218.04,16.052]
[1731326767010,0.1,218.2,218.04,16.052]
[1731326767349,0.1,218.14,218.04,16.052]
[1731326767503,0.1,218.04,218.03,4.77230122]
[1731326767709,23.776884,218.03,217.88,18.347253]
[1731326767903,23.776884,218.03,217.81,0.79601993]
[1731326767904,26.40258104,217.95,217.9,4.77293184]
[1731326768410,26.40258104,217.95,217.89,11.4732]
[1731326768725,26.40258104,217.97,217.89,16.23893137]
[1731326768925,26.40258104,217.97,217.89,20.82833137]
[1731326769424,26.40258104,217.97,217.9,26.40258104]
[1731326770250,10.9971,218.07,217.94,26.40258104]
[1731326770251,26.40258104,218.01,217.94,26.40258104]
[1731326770427,26.40258104,218.03,217.95,26.40258104]
[1731326770732,26.40258104,218.02,217.94,26.40258104]
[1731326770913,26.40258104,218.0,217.93,42.46268104]
[1731326771307,6.602,218.16,217.98,26.40258104]
[1731326771523,26.40258104,218.07,217.99,26.40258104]
[1731326771719,26.40258104,218.07,218.0,26.40258104]
[1731326771923,26.40258104,218.07,217.99,26.40258104]
[1731326772315,26.40258104,218.07,218.0,26.40258104]
[1731326772516,26.40258104,218.08,218.01,26.40258104]
[1731326772927,26.40258104,218.09,218.01,26.40258104]
[1731326773116,26.40258104,218.09,218.02,16.0535]
[1731326773721,32.90458104,218.16,218.02,16.0535]
[1731326773722,26.40258104,218.11,218.04,26.40258104]
[1731326774114,9.41681292,218.1,218.03,26.40258104]
[1731326774329,26.40258104,218.1,218.03,26.40258104]
[1731326774935,26.40258104,218.07,218.02,16.0535]
[1731326775116,26.40258104,218.03,217.91,1.78143252]
[1731326775318,26.40258104,217.99,217.92,16.0608]
[1731326775620,26.40258104,217.98,217.92,16.0608]
[1731326776433,26.40258104,217.99,217.92,42.46338104]
[1731326777135,26.40258104,218.02,217.92,39.0049]
[1731326777310,26.40258104,218.02,217.95,26.40258104]
[1731326777515,26.40258104,218.0,217.92,16.0608]
[1731326777760,26.40258104,217.98,217.92,16.0608]
[1731326778244,26.40258104,217.98,217.79,0.1]
[1731326778245,23.776884,217.92,217.83,4.5907]
[1731326778447,23.776884,217.92,217.69,18.36419]
[1731326778448,26.40258104,217.84,217.69,18.36419]
[1731326778729,26.40258104,217.84,217.65,0.2]
[1731326778730,26.40258104,217.8,217.71,26.40258104]
[1731326778914,26.40258104,217.82,217.75,26.40258104]
[1731326779117,26.40258104,217.84,217.75,26.40258104]
[1731326779323,26.40258104,217.82,217.73,26.40258104]
[1731326779640,23.776884,217.92,217.7,4.77234589]
[1731326779641,26.40258104,217.78,217.7,4.77234589]
[1731326779818,26.40258104,217.8,217.71,26.40258104]
[1731326780334,26.40258104,217.8,217.72,16.0756]
[1731326780638,26.40258104,217.85,217.77,26.40258104]
[1731326781639,26.40258104,217.85,217.79,26.40258104]
[1731326781932,26.40258104,217.87,217.79,26.40258104]
[1731326782133,26.40258104,217.92,217.83,26.40258104]
[1731326782433,32.62988104,217.96,217.87,26.40258104]
[1731326782635,26.40258104,217.94,217.85,26.40258104]
[1731326783143,0.1,217.96,217.87,26.40258104]
[1731326783341,26.40258104,218.01,217.93,26.40258104]
[1731326783720,26.40258104,217.99,217.91,26.40258104]
[1731326784222,26.40258104,217.99,217.76,4.76918831]
[1731326784223,26.40258104,217.93,217.86,16.0653]
[1731326784435,26.40258104,217.95,217.87,26.40258104]
[1731326784739,26.40258104,217.95,217.86,16.0653]
[1731326785035,26.40258104,218.07,217.94,26.40258104]
[1731326785305,26.40258104,218.07,217.98,26.40258104]
[1731326785420,26.40258104,218.01,217.88,5.74056102]
[1731326785749,56.40258104,217.99,217.9,26.40258104]
[1731326785931,56.40258104,217.99,217.92,26.40258104]
[1731326786120,30.0,217.99,217.94,26.40258104]
[1731326786447,30.0,217.99,217.95,16.0587]
[1731326788146,30.0,217.99,217.96,42.95817618]
[1731326788943,30.0,217.99,217.98,42.95817618]
[1731326790022,30.0,217.99,217.97,16.0571]
[1731326790229,27.48586197,217.99,217.98,42.95817618]
[1731326790538,42.95817618,218.07,217.98,61.30008918]
[1731326790745,42.95817618,218.06,218.0,16.0549]
[1731326791642,42.95817618,218.07,218.0,16.0549]
[1731326791840,42.95817618,218.02,218.0,16.0549]
[1731326792029,42.95817618,218.03,218.0,16.0549]
[1731326792227,42.95817618,218.04,218.0,16.0549]
[1731326792621,30.0,218.01,218.0,16.0549]
[1731326792819,30.0,218.01,218.0,11.4678]
[1731326794050,72.95817618,218.01,217.98,4.5875]
[1731326794449,42.95817618,218.0,217.96,4.5879]
[1731326795260,30.0,217.99,217.96,4.5879]
[1731326795544,30.0,217.99,217.98,42.95817618]
[1731326795750,42.95817618,218.09,217.98,42.95817618]
[1731326795944,42.95817618,218.09,217.95,11.4705]
[1731326795945,42.95817618,218.1,218.03,42.95817618]
[1731326796133,6.2537,218.17,217.99,11.4684]
[1731326796449,42.95817618,218.13,218.06,42.95817618]
[1731326797927,23.776884,218.13,218.07,59.00797618]
[1731326798231,42.95817618,218.14,218.07,59.00797618]
[1731326798636,42.95817618,218.15,218.08,42.95817618]
[1731326798837,42.95817618,218.14,218.07,59.00797618]
[1731326799136,42.95817618,218.09,218.07,16.0498]
[1731326799338,42.95817618,218.08,218.05,4.586]
[1731326799638,42.95817618,218.09,218.05,4.586]
[1731326799844,42.95817618,218.09,218.03,16.0528]
[1731326800051,23.776884,218.08,218.03,16.0528]
[1731326800230,42.95817618,218.06,218.03,11.4663]
[1731326800549,42.95817618,218.04,217.97,42.95817618]
[1731326800745,42.95817618,218.04,217.98,11.4686]
[1731326801639,20.1,218.16,218.03,42.95817618]
[1731326801845,42.95817618,218.1,218.04,16.052]
[1731326802040,42.95817618,218.09,218.04,16.052]
[1731326802540,42.95817618,218.08,218.04,16.052]
[1731326802850,42.95817618,218.07,218.0,42.95817618]
[1731326803028,42.95817618,218.08,218.01,42.95817618]
[1731326803230,42.95817618,218.04,217.97,42.95817618]
[1731326803429,42.95817618,218.02,217.95,59.01687618]
[1731326803731,42.95817618,218.01,217.95,16.0587]
[1731326803938,42.95817618,218.02,217.95,59.01687618]
[1731326804152,23.776884,218.05,217.95,16.0587]
[1731326804153,0.1,218.04,217.95,16.0587]
[1731326804455,42.95817618,217.98,217.94,0.81958986]
[1731326804629,42.95817618,217.96,217.94,0.81958986]
[1731326804827,42.95817618,217.95,217.94,0.81958986]
[1731326805232,66.73506018,217.95,217.94,0.81958986]
[1731326805832,96.73506018,217.95,217.94,0.81958986]
[1731326806850,80.24121544,217.95,217.94,0.81958986]
[1731326809559,56.46433144,217.95,217.94,0.81958986]
[1731326811134,30.0,217.95,217.94,0.81958986]
[1731326811944,80.24121544,217.95,217.94,0.81958986]
[1731326812534,50.24121544,217.95,217.94,0.81958986]
[1731326813638,0.1,217.92,217.77,16.072]
[1731326813834,26.46433144,217.88,217.82,26.46433144]
[1731326814046,26.46433144,217.88,217.77,16.072]
[1731326814047,50.24121544,217.88,217.81,26.46433144]
[1731326814248,26.46433144,217.87,217.81,26.46433144]
[1731326814455,23.776884,217.86,217.81,26.46433144]
[1731326814852,23.776884,217.88,217.82,26.46433144]
[1731326815156,26.46433144,217.89,217.83,42.53183144]
[1731326815361,26.46433144,217.9,217.84,26.46433144]
[1731326815542,23.776884,217.91,217.85,26.46433144]
[1731326815743,30.0,217.86,217.85,26.46433144]
[1731326815937,30.0,217.86,217.84,26.46433144]
[1731326816136,30.0,217.86,217.85,26.46433144]
[1731326816338,23.776884,217.93,217.85,26.46433144]
[1731326816739,23.776884,217.93,217.87,26.46433144]
[1731326817059,26.46433144,217.98,217.92,26.46433144]
[1731326817256,30.0,217.93,217.92,26.46433144]
[1731326817756,30.0,217.93,217.91,26.46433144]
[1731326818058,26.46433144,217.98,217.91,26.46433144]
[1731326818359,26.46433144,217.99,217.92,26.46433144]
[1731326818545,23.776884,217.98,217.92,26.46433144]
[1731326818740,50.24121544,217.98,217.91,26.46433144]
[1731326819267,50.24121544,217.98,217.83,22.9536]
[1731326819268,23.776884,217.98,217.92,26.46433144]
[1731326819441,26.46433144,218.01,217.94,26.46433144]
[1731326819644,26.46433144,218.0,217.94,26.46433144]
[1731326819956,26.46433144,217.99,217.93,26.46433144]
[1731326820153,26.46433144,217.99,217.92,26.46433144]
[1731326820540,26.46433144,218.01,217.95,26.46433144]
[1731326820748,26.46433144,218.05,217.98,26.46433144]
[1731326821237,4.5829,218.2,218.05,16.0513]
[1731326821437,26.46433144,218.15,218.08,26.46433144]
[1731326821661,26.46433144,218.18,218.11,26.46433144]
[1731326821959,26.46433144,218.2,218.12,26.46433144]
[1731326822264,26.46433144,218.21,218.13,26.46433144]
[1731326822468,26.46433144,218.2,218.12,26.46433144]
[1731326822652,26.46433144,218.16,218.09,26.46433144]
[1731326822854,26.46433144,218.14,218.07,26.46433144]
[1731326823364,26.46433144,218.14,218.08,4.5854]
[1731326823548,26.46433144,218.09,218.02,4.5865]
[1731326824058,4.6837,218.17,218.02,4.5865]
[1731326824059,26.46433144,218.11,218.03,26.46433144]
[1731326824255,26.46433144,218.1,218.03,26.46433144]
[1731326824458,50.24121544,218.1,218.03,26.46433144]
[1731326824763,23.776884,218.1,218.05,4.5861]
[1731326825262,50.24121544,218.1,218.05,4.5861]
[1731326825468,23.776884,218.1,218.05,16.0513]
[1731326825645,26.46433144,218.15,218.07,26.46433144]
[1731326825847,4.583,218.2,218.07,26.46433144]
[1731326826044,26.46433144,218.16,218.09,26.46433144]
[1731326826238,26.46433144,218.15,218.08,26.46433144]
[1731326826467,26.46433144,218.15,217.99,0.1]
[1731326826468,0.1,218.16,218.0,11.4677]
[1731326826654,26.46433144,218.05,218.0,11.4677]
[1731326826972,26.46433144,218.03,218.0,11.4677]
[1731326827267,26.46433144,218.04,218.0,11.4677]
[1731326827447,26.46433144,218.03,218.0,11.4677]
[1731326828044,43.776884,218.1,218.0,11.4677]
[1731326828045,26.46433144,218.05,218.0,11.4677]
[1731326828246,23.776884,218.04,218.0,11.4677]
[1731326828861,26.46433144,218.03,217.96,26.46433144]
[1731326829050,50.24121544,218.04,217.97,26.46433144]
[1731326829553,26.46433144,218.03,217.96,31.05213144]
[1731326829769,50.24121544,218.04,217.96,31.05213144]
[1731326829945,50.24121544,218.04,217.97,26.46433144]
[1731326830295,50.24121544,218.04,217.98,4.5875]
[1731326830767,23.776884,218.04,217.98,42.52073144]
[1731326831070,50.24121544,218.04,217.98,16.0564]
[1731326831746,26.46433144,218.01,217.93,42.52443144]
[1731326831944,50.24121544,217.99,217.93,16.0601]
[1731326832141,23.776884,217.93,217.82,34.4316]
[1731326832344,13.74,218.03,217.83,31.05503144]
[1731326832345,23.776884,217.9,217.83,31.05503144]
[1731326832565,50.24121544,217.9,217.83,16.0675]
[1731326832950,66.78257303,217.9,217.83,16.0675]
[1731326833157,66.78257303,217.9,217.83,11.4768]
[1731326833353,23.776884,217.87,217.8,43.00568903]
[1731326833755,43.00568903,217.91,217.83,43.00568903]
[1731326834061,23.776884,217.9,217.83,43.00568903]
[1731326834265,23.776884,217.87,217.81,59.07458903]
[1731326834770,66.78257303,217.89,217.82,43.00568903]
[1731326835068,6.5684,218.14,217.91,0.1]
[1731326835250,43.00568903,218.04,217.95,43.00568903]
[1731326835563,43.00568903,218.02,217.95,43.00568903]
[1731326835956,43.00568903,218.02,217.96,16.0578]
[1731326836143,43.00568903,218.04,217.97,43.00568903]
[1731326836472,43.00568903,218.08,218.0,43.00568903]
[1731326836762,4.5846,218.12,218.0,43.00568903]
[1731326836975,43.00568903,218.13,218.06,43.00568903]
[1731326837168,43.00568903,218.14,218.07,43.00568903]
[1731326837463,43.00568903,218.15,218.07,43.00568903]
[1731326837788,0.1,218.17,218.02,43.00568903]
[1731326837971,43.00568903,218.09,218.03,16.0528]
[1731326838263,43.00568903,218.13,218.06,43.00568903]
[1731326839273,43.00568903,218.14,218.07,43.00568903]
[1731326839456,43.00568903,218.13,218.06,43.00568903]
[1731326839657,23.776884,218.12,218.06,43.00568903]
[1731326840051,23.776884,218.12,218.07,4.5856]
[1731326840052,66.78257303,218.12,218.07,4.5856]
[1731326840257,10.69,218.26,218.11,43.00568903]
[1731326840572,43.00568903,218.25,218.18,43.00568903]
[1731326841071,49.11398903,218.26,218.19,43.00568903]
[1731326841267,6.1083,218.26,218.2,43.00568903]
[1731326841689,43.00568903,218.27,218.2,43.00568903]
[1731326841863,43.00568903,218.26,218.19,47.58868903]
[1731326842390,43.00568903,218.26,218.19,59.04658903]
[1731326842564,4.5808,218.3,218.21,43.00568903]
[1731326842565,43.00568903,218.28,218.21,43.00568903]
[1731326843078,4.5808,218.3,218.19,16.0409]
[1731326843079,43.00568903,218.27,218.2,43.00568903]
[1731326843279,43.00568903,218.28,218.21,47.58838903]
[1731326843474,43.00568903,218.28,218.21,4.5827]
[1731326843777,43.00568903,218.28,218.21,47.58838903]
[1731326843963,43.00568903,218.28,218.21,4.5827]
[1731326845965,43.00568903,218.27,218.21,4.5827]
[1731326847166,43.00568903,218.25,218.18,43.00568903]
[1731326847361,23.776884,218.26,218.1,16.0476]
[1731326847362,43.00568903,218.24,218.1,16.0476]
[1731326847571,43.00568903,218.2,218.13,43.00568903]
[1731326847763,43.00568903,218.21,218.14,43.00568903]
[1731326848075,43.00568903,218.19,218.12,43.00568903]
[1731326848262,23.776884,218.18,218.12,43.00568903]
[1731326848462,23.776884,218.18,218.1,11.4626]